[Event "*** Titled Tuesday Blitz"]
[Site "Chess.com"]
[Date "2019.04.02"]
[Round "10"]
[White "pedro_gines"]
[Black "Chessmatus"]
[Result "0-1"]
[WhiteElo "2418"]
[BlackElo "2324"]
[TimeControl "180+2"]
[EndTime "16:22:12 PDT"]
[Termination "Chessmatus won on time"]

1. Nf3 {[%clk 0:03:01.9]} 1... Nf6 {[%clk 0:03:00.2]} 2. c4 {[%clk 0:02:50.1]}
2... c5 {[%clk 0:03:00.9]} 3. b3 {[%clk 0:02:50.8]} 3... d5 {[%clk 0:03:01.2]}
4. Bb2 {[%clk 0:02:52.4]} 4... d4 {[%clk 0:03:02.3]} 5. e3 {[%clk 0:02:53.1]}
5... Nc6 {[%clk 0:03:03.4]} 6. g3 {[%clk 0:02:54]} 6... e5 {[%clk 0:03:03.5]} 7.
Bg2 {[%clk 0:02:54.4]} 7... Bd6 {[%clk 0:02:59.2]} 8. exd4 {[%clk 0:02:52.9]}
8... cxd4 {[%clk 0:02:59.5]} 9. O-O {[%clk 0:02:53.3]} 9... O-O {[%clk
0:03:00.6]} 10. Re1 {[%clk 0:02:51.1]} 10... Re8 {[%clk 0:03:00.1]} 11. d3
{[%clk 0:02:50.3]} 11... h6 {[%clk 0:02:56.9]} 12. Nbd2 {[%clk 0:02:44]} 12...
Bf5 {[%clk 0:02:57.6]} 13. Ne4 {[%clk 0:02:42.1]} 13... Nxe4 {[%clk 0:02:53.9]}
14. dxe4 {[%clk 0:02:44]} 14... Be6 {[%clk 0:02:42.4]} 15. Nh4 {[%clk
0:02:43.4]} 15... g6 {[%clk 0:02:36]} 16. a3 {[%clk 0:02:40]} 16... a5 {[%clk
0:02:36]} 17. Rc1 {[%clk 0:02:40.2]} 17... Bf8 {[%clk 0:02:36.4]} 18. Bf1 {[%clk
0:02:37.4]} 18... h5 {[%clk 0:02:25.6]} 19. Bd3 {[%clk 0:02:37.7]} 19... Bh6
{[%clk 0:02:25.8]} 20. Rc2 {[%clk 0:02:37.8]} 20... Bg4 {[%clk 0:02:24.3]} 21.
f3 {[%clk 0:02:38.3]} 21... Be6 {[%clk 0:02:23.1]} 22. Bc1 {[%clk 0:02:32.6]}
22... Bxc1 {[%clk 0:02:20.2]} 23. Qxc1 {[%clk 0:02:34.5]} 23... Kg7 {[%clk
0:02:21.2]} 24. Qd2 {[%clk 0:02:31.7]} 24... Qf6 {[%clk 0:02:16.8]} 25. b4
{[%clk 0:02:30.2]} 25... axb4 {[%clk 0:02:15.2]} 26. axb4 {[%clk 0:02:32.1]}
26... Ra3 {[%clk 0:02:16.1]} 27. b5 {[%clk 0:02:21.3]} 27... Na5 {[%clk
0:02:05.5]} 28. Ra2 {[%clk 0:02:18.9]} 28... Nb3 {[%clk 0:01:57.1]} 29. Qb2
{[%clk 0:02:14.1]} 29... Rxa2 {[%clk 0:01:55.7]} 30. Qxa2 {[%clk 0:02:16]} 30...
Nc5 {[%clk 0:01:55.9]} 31. Bf1 {[%clk 0:02:16.8]} 31... g5 {[%clk 0:01:52.8]}
32. Nf5+ {[%clk 0:02:14.3]} 32... Bxf5 {[%clk 0:01:54]} 33. exf5 {[%clk
0:02:16.2]} 33... Qxf5 {[%clk 0:01:55.4]} 34. Qf2 {[%clk 0:02:16.8]} 34... g4
{[%clk 0:01:50.8]} 35. f4 {[%clk 0:02:09.4]} 35... f6 {[%clk 0:01:31.8]} 36. Bg2
{[%clk 0:01:57.5]} 36... Re7 {[%clk 0:01:27]} 37. Qd2 {[%clk 0:01:36.8]} 37...
Rd7 {[%clk 0:00:59.7]} 38. Bd5 {[%clk 0:01:35.5]} 38... Qd3 {[%clk 0:00:49.4]}
39. Qf2 {[%clk 0:01:33.9]} 39... e4 {[%clk 0:00:43.9]} 40. f5 {[%clk 0:01:34.4]}
40... e3 {[%clk 0:00:37.4]} 41. Qf4 {[%clk 0:01:33.9]} 41... Qd2 {[%clk
0:00:36.8]} 42. Rf1 {[%clk 0:01:32.6]} 42... d3 {[%clk 0:00:06.3]} 43. Qb8
{[%clk 0:01:31.5]} 43... Rxd5 {[%clk 0:00:07.3]} 44. cxd5 {[%clk 0:01:27.9]}
44... e2 {[%clk 0:00:08.6]} 45. Qc7+ {[%clk 0:01:26]} 45... Kh6 {[%clk
0:00:09.8]} 46. Qxc5 {[%clk 0:01:07.4]} 46... exf1=Q+ {[%clk 0:00:10.6]} 47.
Kxf1 {[%clk 0:01:09.3]} 47... Qd1+ {[%clk 0:00:11.6]} 48. Kg2 {[%clk 0:01:07.6]}
48... Qf3+ {[%clk 0:00:12.8]} 49. Kg1 {[%clk 0:01:06.9]} 49... d2 {[%clk
0:00:14.1]} 50. Qf8+ {[%clk 0:01:02.2]} 50... Kg5 {[%clk 0:00:15.3]} 51. Qg8+
{[%clk 0:00:53.8]} 51... Kxf5 {[%clk 0:00:16.4]} 52. Qe6+ {[%clk 0:00:55.4]}
52... Kg5 {[%clk 0:00:14.4]} 53. Qg8+ {[%clk 0:00:55.3]} 53... Kh6 {[%clk
0:00:11]} 54. Qh8+ {[%clk 0:00:50.1]} 54... Kg6 {[%clk 0:00:12.4]} 55. Qg8+
{[%clk 0:00:44.1]} 55... Kf5 {[%clk 0:00:12.8]} 56. Qe6+ {[%clk 0:00:20.6]}
56... Kg6 {[%clk 0:00:11.7]} 57. Qe8+ {[%clk 0:00:21.8]} 57... Kg7 {[%clk
0:00:11.1]} 58. Qe7+ {[%clk 0:00:18.1]} 58... Kg6 {[%clk 0:00:12.2]} 59. Qe8+
{[%clk 0:00:15.7]} 59... Kg7 {[%clk 0:00:13.4]} 60. Qd7+ {[%clk 0:00:11]} 60...
Kf8 {[%clk 0:00:14.3]} 61. Qc8+ {[%clk 0:00:10.5]} 61... Ke7 {[%clk 0:00:15.4]}
62. d6+ {[%clk 0:00:11.6]} 62... Kxd6 {[%clk 0:00:14.5]} 63. Qd8+ {[%clk
0:00:13.1]} 63... Ke5 {[%clk 0:00:15.7]} 64. Qxd2 {[%clk 0:00:15]} 64... Qd5
{[%clk 0:00:15.4]} 65. Qe3+ {[%clk 0:00:15]} 65... Qe4 {[%clk 0:00:16]} 66. Qc5+
{[%clk 0:00:16]} 66... Qd5 {[%clk 0:00:17.1]} 67. Qe3+ {[%clk 0:00:16.1]} 67...
Kf5 {[%clk 0:00:17.4]} 68. Qf4+ {[%clk 0:00:16.5]} 68... Kg6 {[%clk 0:00:18.5]}
69. Qb4 {[%clk 0:00:14.2]} 69... Qd1+ {[%clk 0:00:18.3]} 70. Kg2 {[%clk
0:00:15]} 70... Qe2+ {[%clk 0:00:19.4]} 71. Kg1 {[%clk 0:00:16.3]} 71... Qd1+
{[%clk 0:00:20]} 72. Kf2 {[%clk 0:00:16.8]} 72... Qc2+ {[%clk 0:00:21.1]} 73.
Kg1 {[%clk 0:00:17.3]} 73... b6 {[%clk 0:00:20.2]} 74. Qe7 {[%clk 0:00:11.3]}
74... Qb1+ {[%clk 0:00:20.6]} 75. Kg2 {[%clk 0:00:11.9]} 75... Qb2+ {[%clk
0:00:21.5]} 76. Kg1 {[%clk 0:00:12.6]} 76... Qd4+ {[%clk 0:00:22.5]} 77. Kg2
{[%clk 0:00:10.1]} 77... Qd5+ {[%clk 0:00:23.5]} 78. Kg1 {[%clk 0:00:10.7]}
78... Qd4+ {[%clk 0:00:23.8]} 79. Kg2 {[%clk 0:00:10.5]} 79... Qa1 {[%clk
0:00:24.6]} 80. Qe8+ {[%clk 0:00:09.5]} 80... Kf5 {[%clk 0:00:25.9]} 81. Qc8+
{[%clk 0:00:10]} 81... Ke5 {[%clk 0:00:26.8]} 82. Qc7+ {[%clk 0:00:10.8]} 82...
Ke4 {[%clk 0:00:28]} 83. Qc6+ {[%clk 0:00:11.1]} 83... Ke3 {[%clk 0:00:28.2]}
84. Qxb6+ {[%clk 0:00:11.6]} 84... Ke4 {[%clk 0:00:29.5]} 85. Qe6+ {[%clk
0:00:11.9]} 85... Kd3 {[%clk 0:00:29.7]} 86. Qd5+ {[%clk 0:00:13.1]} 86... Ke3
{[%clk 0:00:30.4]} 87. Qe6+ {[%clk 0:00:10.7]} 87... Kd3 {[%clk 0:00:30.8]} 88.
Qd5+ {[%clk 0:00:12]} 88... Ke3 {[%clk 0:00:32]} 89. Qc5+ {[%clk 0:00:13]} 89...
Ke4 {[%clk 0:00:32.8]} 90. Qc4+ {[%clk 0:00:13.9]} 90... Kf5 {[%clk 0:00:33.8]}
91. Qd3+ {[%clk 0:00:13.6]} 91... Ke5 {[%clk 0:00:34.9]} 92. Qe3+ {[%clk
0:00:13.2]} 92... Kd5 {[%clk 0:00:35.9]} 93. b6 {[%clk 0:00:13.2]} 93... Qb2+
{[%clk 0:00:36.1]} 94. Qe2 {[%clk 0:00:14.5]} 94... Qxe2+ {[%clk 0:00:36.5]} 0-1

[Event "*** Titled Tuesday Blitz"]
[Site "Chess.com"]
[Date "2019.04.02"]
[Round "10"]
[White "IMRosen"]
[Black "SoltaniciR"]
[Result "1/2-1/2"]
[WhiteElo "2540"]
[BlackElo "2588"]
[TimeControl "180+2"]
[EndTime "16:23:12 PDT"]
[Termination "Game drawn - insufficient material"]

1. d4 {[%clk 0:03:01.9]} 1... Nf6 {[%clk 0:03:00.2]} 2. Bf4 {[%clk 0:03:02.2]}
2... d5 {[%clk 0:02:59.8]} 3. e3 {[%clk 0:02:58.1]} 3... c5 {[%clk 0:03:00.5]}
4. Nf3 {[%clk 0:02:57.3]} 4... Nc6 {[%clk 0:03:00.8]} 5. Nbd2 {[%clk 0:02:57.1]}
5... cxd4 {[%clk 0:02:52.6]} 6. exd4 {[%clk 0:02:57.3]} 6... Bf5 {[%clk
0:02:48.8]} 7. c3 {[%clk 0:02:52.8]} 7... Qb6 {[%clk 0:02:43.3]} 8. Nb3 {[%clk
0:02:46.4]} 8... e6 {[%clk 0:02:43.5]} 9. Be2 {[%clk 0:02:44.4]} 9... Be7 {[%clk
0:02:42.4]} 10. Nh4 {[%clk 0:02:42.5]} 10... Bg6 {[%clk 0:02:42.1]} 11. Nxg6
{[%clk 0:02:42.8]} 11... hxg6 {[%clk 0:02:42.7]} 12. h3 {[%clk 0:02:44.2]} 12...
Ne4 {[%clk 0:02:37.5]} 13. Bd3 {[%clk 0:02:33.5]} 13... Bd6 {[%clk 0:02:36.3]}
14. Be3 {[%clk 0:02:21.2]} 14... Nf6 {[%clk 0:02:32]} 15. a4 {[%clk 0:02:14.7]}
15... a6 {[%clk 0:02:30.9]} 16. a5 {[%clk 0:02:14.7]} 16... Qc7 {[%clk
0:02:31.2]} 17. O-O {[%clk 0:01:49.1]} 17... Ne7 {[%clk 0:02:31.9]} 18. Nc5
{[%clk 0:01:47.4]} 18... Nf5 {[%clk 0:02:29.2]} 19. Qa4+ {[%clk 0:01:31.6]}
19... Kf8 {[%clk 0:02:28.7]} 20. b4 {[%clk 0:01:18.3]} 20... Ng4 {[%clk
0:02:19.1]} 21. Bxf5 {[%clk 0:01:03.7]} 21... gxf5 {[%clk 0:02:18.8]} 22. Qd7
{[%clk 0:00:56.3]} 22... Nxe3 {[%clk 0:01:25.4]} 23. Qxc7 {[%clk 0:00:53.2]}
23... Bxc7 {[%clk 0:01:25.3]} 24. fxe3 {[%clk 0:00:54.3]} 24... Ra7 {[%clk
0:01:23]} 25. Rf3 {[%clk 0:00:54.8]} 25... Ke7 {[%clk 0:01:22.9]} 26. Raf1
{[%clk 0:00:56]} 26... b6 {[%clk 0:01:20.8]} 27. axb6 {[%clk 0:00:53]} 27...
Bxb6 {[%clk 0:01:22.7]} 28. Ra1 {[%clk 0:00:52.2]} 28... Rha8 {[%clk 0:01:20.3]}
29. Rf2 {[%clk 0:00:48.7]} 29... a5 {[%clk 0:01:08.1]} 30. b5 {[%clk 0:00:29.2]}
30... Kd6 {[%clk 0:01:08.8]} 31. Na4 {[%clk 0:00:27.7]} 31... Rb8 {[%clk
0:01:06.9]} 32. Rc2 {[%clk 0:00:17.5]} 32... Bd8 {[%clk 0:01:05.6]} 33. Rb1
{[%clk 0:00:16.2]} 33... Rab7 {[%clk 0:01:06.4]} 34. Rcb2 {[%clk 0:00:16.4]}
34... Rc8 {[%clk 0:01:07.7]} 35. Nc5 {[%clk 0:00:14.5]} 35... Rb6 {[%clk
0:01:01]} 36. Kf1 {[%clk 0:00:15.4]} 36... Ra8 {[%clk 0:00:55.5]} 37. Na4 {[%clk
0:00:15.2]} 37... Rbb8 {[%clk 0:00:53.4]} 38. Ke2 {[%clk 0:00:16]} 38... Rc8
{[%clk 0:00:51.6]} 39. Kd3 {[%clk 0:00:16.3]} 39... Rab8 {[%clk 0:00:47.1]} 40.
Nc5 {[%clk 0:00:15.6]} 40... Bb6 {[%clk 0:00:47.1]} 41. Na6 {[%clk 0:00:08.1]}
41... Rb7 {[%clk 0:00:47.1]} 42. Rb3 {[%clk 0:00:09.3]} 42... Rc4 {[%clk
0:00:47.7]} 43. Ra1 {[%clk 0:00:10.7]} 43... f6 {[%clk 0:00:41.1]} 44. g3 {[%clk
0:00:11]} 44... e5 {[%clk 0:00:42.2]} 45. h4 {[%clk 0:00:11.7]} 45... g6 {[%clk
0:00:42.1]} 46. Rf1 {[%clk 0:00:11.2]} 46... a4 {[%clk 0:00:39.7]} 47. Ra3
{[%clk 0:00:09.6]} 47... Ba7 {[%clk 0:00:40.9]} 48. Nb4 {[%clk 0:00:07.1]} 48...
Rxb5 {[%clk 0:00:37.2]} 49. Rxa4 {[%clk 0:00:07.7]} 49... Bb6 {[%clk 0:00:36.6]}
50. Ra6 {[%clk 0:00:08.9]} 50... Ke6 {[%clk 0:00:28.8]} 51. Kd2 {[%clk
0:00:07.1]} 51... Kf7 {[%clk 0:00:28.5]} 52. Rfa1 {[%clk 0:00:07.7]} 52... exd4
{[%clk 0:00:25.2]} 53. exd4 {[%clk 0:00:08.5]} 53... Rcxb4 {[%clk 0:00:26.4]}
54. cxb4 {[%clk 0:00:07.8]} 54... Rxb4 {[%clk 0:00:28.3]} 55. Rc1 {[%clk
0:00:05.7]} 55... Rxd4+ {[%clk 0:00:26.1]} 56. Ke2 {[%clk 0:00:06.8]} 56... Re4+
{[%clk 0:00:26.3]} 57. Kf1 {[%clk 0:00:08.1]} 57... Bd8 {[%clk 0:00:25.3]} 58.
Ra7+ {[%clk 0:00:07.8]} 58... Be7 {[%clk 0:00:26.1]} 59. Rcc7 {[%clk 0:00:07.1]}
59... f4 {[%clk 0:00:24.6]} 60. Kg2 {[%clk 0:00:06.9]} 60... fxg3 {[%clk
0:00:25.2]} 61. Kxg3 {[%clk 0:00:08.5]} 61... f5 {[%clk 0:00:25.9]} 62. Rd7
{[%clk 0:00:09.1]} 62... d4 {[%clk 0:00:25.1]} 63. h5 {[%clk 0:00:08.7]} 63...
gxh5 {[%clk 0:00:25.4]} 64. Rd5 {[%clk 0:00:10.3]} 64... Kg6 {[%clk 0:00:24.7]}
65. Raa5 {[%clk 0:00:09.6]} 65... Rg4+ {[%clk 0:00:15.7]} 66. Kf3 {[%clk
0:00:09.2]} 66... Rg5 {[%clk 0:00:15.4]} 67. Rxd4 {[%clk 0:00:09.2]} 67... Bf6
{[%clk 0:00:16]} 68. Rd6 {[%clk 0:00:09.5]} 68... f4 {[%clk 0:00:15.3]} 69. Raa6
{[%clk 0:00:06.2]} 69... Rf5 {[%clk 0:00:15.7]} 70. Ra8 {[%clk 0:00:06.3]} 70...
Kf7 {[%clk 0:00:12.4]} 71. Ra7+ {[%clk 0:00:04.5]} 71... Kg6 {[%clk 0:00:13.1]}
72. Ra8 {[%clk 0:00:06]} 72... Kf7 {[%clk 0:00:12.7]} 73. Ra7+ {[%clk
0:00:07.7]} 73... Kg6 {[%clk 0:00:13.4]} 74. Ra1 {[%clk 0:00:09.3]} 74... Rg5
{[%clk 0:00:13.1]} 75. Kxf4 {[%clk 0:00:07.9]} 75... Rf5+ {[%clk 0:00:12.3]} 76.
Kg3 {[%clk 0:00:07.2]} 76... Rg5+ {[%clk 0:00:13.4]} 77. Kh3 {[%clk 0:00:08]}
77... Rf5 {[%clk 0:00:14.6]} 78. Rg1+ {[%clk 0:00:09.6]} 78... Rg5 {[%clk
0:00:15]} 79. Rf1 {[%clk 0:00:11.2]} 79... Rf5 {[%clk 0:00:15.8]} 80. Re1 {[%clk
0:00:12.8]} 80... Kg5 {[%clk 0:00:15.7]} 81. Rg1+ {[%clk 0:00:13.3]} 81... Kh6
{[%clk 0:00:15.7]} 82. Rb1 {[%clk 0:00:11.4]} 82... Rf3+ {[%clk 0:00:16.5]} 83.
Kg2 {[%clk 0:00:11.9]} 83... Rf5 {[%clk 0:00:17.9]} 84. Rbb6 {[%clk 0:00:12.1]}
84... Kg5 {[%clk 0:00:18.9]} 85. Re6 {[%clk 0:00:11.9]} 85... Be5 {[%clk
0:00:17.7]} 86. Rg6+ {[%clk 0:00:12.8]} 86... Kh4 {[%clk 0:00:17.7]} 87. Rb4+
{[%clk 0:00:11.3]} 87... Rf4 {[%clk 0:00:16]} 88. Rxf4+ {[%clk 0:00:07.8]} 88...
Bxf4 {[%clk 0:00:17.9]} 89. Kf3 {[%clk 0:00:09]} 89... Be5 {[%clk 0:00:17.4]}
90. Re6 {[%clk 0:00:09.6]} 90... Bc7 {[%clk 0:00:18.1]} 91. Re7 {[%clk
0:00:10.4]} 91... Bd6 {[%clk 0:00:19]} 92. Rg7 {[%clk 0:00:11.7]} 92... Be5
{[%clk 0:00:19.8]} 93. Rg6 {[%clk 0:00:13.3]} 93... Bc7 {[%clk 0:00:20.4]} 94.
Ke4 {[%clk 0:00:14.6]} 94... Bb8 {[%clk 0:00:21.1]} 95. Kf5 {[%clk 0:00:15.3]}
95... Kh3 {[%clk 0:00:21.7]} 96. Rg8 {[%clk 0:00:15.1]} 96... Bc7 {[%clk
0:00:22.1]} 97. Ke4 {[%clk 0:00:14.2]} 97... h4 {[%clk 0:00:22.3]} 98. Kf3
{[%clk 0:00:15.6]} 98... Bg3 {[%clk 0:00:22.7]} 99. Rc8 {[%clk 0:00:15.3]} 99...
Kh2 {[%clk 0:00:23.5]} 100. Rc2+ {[%clk 0:00:15.5]} 100... Kh1 {[%clk
0:00:23.7]} 101. Kg4 {[%clk 0:00:15.6]} 101... Kg1 {[%clk 0:00:24.5]} 102. Kf3
{[%clk 0:00:13.9]} 102... Kh1 {[%clk 0:00:25.1]} 103. Rg2 {[%clk 0:00:13.8]}
103... h3 {[%clk 0:00:16.9]} 104. Rxg3 {[%clk 0:00:12.4]} 104... h2 {[%clk
0:00:18.1]} 105. Rh3 {[%clk 0:00:07.3]} 105... Kg1 {[%clk 0:00:19]} 106. Rg3+
{[%clk 0:00:05.4]} 106... Kf1 {[%clk 0:00:16.8]} 107. Rh3 {[%clk 0:00:05.1]}
107... Kg1 {[%clk 0:00:17.9]} 108. Kg3 {[%clk 0:00:05.3]} 108... h1=Q {[%clk
0:00:17.7]} 109. Rxh1+ {[%clk 0:00:07.2]} 109... Kxh1 {[%clk 0:00:18.7]} 1/2-1/2